[Event "Titled Tuesday Blitz February 14 Early 2023"]
[White "Panesar Vedant"]
[Black "Rustemov, Alexander"]
[WhiteFideId "35033018"]
[BlackFideId "4119002"]
[WhiteElo "2387"]
[BlackElo "2525"]
[Result "1-0"]
[Round "07"]
[TimeControl "180+2"]
[Date "2023.02.15"]
[WhiteClock "0:00:11"]
[BlackClock "0:00:05"]

1. Nf3 {[%clk 0:03:00]}  d5 {[%clk 0:02:56]} 2. g3 {[%clk 0:03:01]}  c6 {[%clk 0:02:56]} 3. Bg2 {[%clk 0:03:02]}  Bf5 {[%clk 0:02:56]} 4. O-O {[%clk 0:03:01]}  Nf6 {[%clk 0:02:52]} 5. d3 {[%clk 0:03:02]}  e6 {[%clk 0:02:50]} 6. Nh4 {[%clk 0:03:02]}  Bg4 {[%clk 0:02:50]} 7. h3 {[%clk 0:03:03]}  Bh5 {[%clk 0:02:50]} 8. Qe1 {[%clk 0:03:03]}  Be7 {[%clk 0:02:49]} 9. f4 {[%clk 0:03:03]}  Nfd7 {[%clk 0:02:47]} 10. Nf3 {[%clk 0:03:03]}  O-O {[%clk 0:02:26]} 11. Nc3 {[%clk 0:03:03]}  Na6 {[%clk 0:02:15]} 12. Kh2 {[%clk 0:03:02]}  Nb4 {[%clk 0:02:11]} 13. Qd1 {[%clk 0:02:57]}  f5 {[%clk 0:02:10]} 14. a3 {[%clk 0:02:57]}  Na6 {[%clk 0:02:10]} 15. Qe1 {[%clk 0:02:54]}  Qc7 {[%clk 0:02:06]} 16. Nd4 {[%clk 0:02:50]}  Qd6 {[%clk 0:01:58]} 17. Qf2 {[%clk 0:02:25]}  Nc7 {[%clk 0:01:58]} 18. e4 {[%clk 0:02:22]}  fxe4 {[%clk 0:01:57]} 19. dxe4 {[%clk 0:02:23]}  e5 {[%clk 0:01:58]} 20. Nf5 {[%clk 0:02:22]}  Rxf5 {[%clk 0:01:45]} 21. exf5 {[%clk 0:02:21]}  e4 {[%clk 0:01:44]} 22. Be3 {[%clk 0:02:20]}  Bf6 {[%clk 0:01:21]} 23. g4 {[%clk 0:02:12]}  Bf7 {[%clk 0:01:20]} 24. Bd4 {[%clk 0:02:11]}  c5 {[%clk 0:01:09]} 25. Bxf6 {[%clk 0:02:07]}  Nxf6 {[%clk 0:01:10]} 26. Rad1 {[%clk 0:02:07]}  Re8 {[%clk 0:01:08]} 27. g5 {[%clk 0:02:03]}  e3 {[%clk 0:01:02]} 28. Qh4 {[%clk 0:00:45]}  Nh5 {[%clk 0:01:01]} 29. Rde1 {[%clk 0:00:36]}  g6 {[%clk 0:00:57]} 30. f6 {[%clk 0:00:32]}  d4 {[%clk 0:00:44]} 31. Ne4 {[%clk 0:00:31]}  Qb6 {[%clk 0:00:40]} 32. Ng3 {[%clk 0:00:32]}  Nxg3 {[%clk 0:00:37]} 33. Kxg3 {[%clk 0:00:31]}  c4 {[%clk 0:00:34]} 34. Qh6 {[%clk 0:00:29]}  Ne6 {[%clk 0:00:32]} 35. Bd5 {[%clk 0:00:29]}  Qc7 {[%clk 0:00:33]} 36. h4 {[%clk 0:00:22]}  Rd8 {[%clk 0:00:32]} 37. Bxe6 {[%clk 0:00:20]}  Bxe6 {[%clk 0:00:33]} 38. h5 {[%clk 0:00:21]}  Bf5 {[%clk 0:00:34]} 39. hxg6 {[%clk 0:00:21]}  Bxg6 {[%clk 0:00:32]} 40. Kg4 {[%clk 0:00:19]}  d3 {[%clk 0:00:31]} 41. cxd3 {[%clk 0:00:19]}  cxd3 {[%clk 0:00:30]} 42. f5 {[%clk 0:00:18]}  Rd4+ {[%clk 0:00:28]} 43. Kh3 {[%clk 0:00:18]}  Qd7 {[%clk 0:00:25]} 44. Rxe3 {[%clk 0:00:14]}  Bxf5+ {[%clk 0:00:21]} 45. Kh2 {[%clk 0:00:13]}  Bg6 {[%clk 0:00:17]} 46. Rfe1 {[%clk 0:00:10]}  d2 {[%clk 0:00:15]} 47. Re8+ {[%clk 0:00:10]}  Bxe8 {[%clk 0:00:11]} 48. Rxe8+ {[%clk 0:00:11]}  Kf7 {[%clk 0:00:12]} 49. Qg7+ {[%clk 0:00:11]}  Kxe8 {[%clk 0:00:05]} 50. Qg8# {[%clk 0:00:11]} 1-0


[Site "https://www.chess.com"]

[Event "Titled Tuesday Blitz February 14 Early 2023"]
[White "Tan, Jun Ying"]
[Black "Seo, Jung Min"]
[WhiteFideId "5710413"]
[BlackFideId "1734687"]
[WhiteElo "2307"]
[BlackElo "2494"]
[Result "1/2-1/2"]
[Round "07"]
[TimeControl "180+2"]
[Date "2023.02.15"]
[WhiteClock "0:00:35"]
[BlackClock "0:01:04"]

1. d4 {[%clk 0:03:00]}  d6 {[%clk 0:02:59]} 2. Nf3 {[%clk 0:02:59]}  Nf6 {[%clk 0:02:59]} 3. c4 {[%clk 0:02:59]}  Bf5 {[%clk 0:02:56]} 4. Nc3 {[%clk 0:02:55]}  Nbd7 {[%clk 0:02:56]} 5. g3 {[%clk 0:02:54]}  h6 {[%clk 0:02:55]} 6. Bg2 {[%clk 0:02:54]}  c6 {[%clk 0:02:55]} 7. O-O {[%clk 0:02:54]}  e5 {[%clk 0:02:54]} 8. Re1 {[%clk 0:02:33]}  Be7 {[%clk 0:02:42]} 9. e4 {[%clk 0:02:28]}  Bg4 {[%clk 0:02:42]} 10. h3 {[%clk 0:02:12]}  Bh5 {[%clk 0:02:36]} 11. g4 {[%clk 0:02:09]}  Bg6 {[%clk 0:02:36]} 12. Nh4 {[%clk 0:02:00]}  Bh7 {[%clk 0:02:35]} 13. Nf5 {[%clk 0:01:59]}  O-O {[%clk 0:02:28]} 14. d5 {[%clk 0:01:53]}  Bxf5 {[%clk 0:02:25]} 15. exf5 {[%clk 0:01:49]}  cxd5 {[%clk 0:02:12]} 16. Nxd5 {[%clk 0:01:45]}  Nxd5 {[%clk 0:02:11]} 17. Bxd5 {[%clk 0:01:45]}  Rb8 {[%clk 0:02:08]} 18. Be3 {[%clk 0:01:43]}  Nb6 {[%clk 0:02:07]} 19. b3 {[%clk 0:01:29]}  Bg5 {[%clk 0:02:07]} 20. Qd3 {[%clk 0:01:14]}  Kh8 {[%clk 0:02:01]} 21. Rad1 {[%clk 0:01:12]}  Bxe3 {[%clk 0:01:54]} 22. fxe3 {[%clk 0:01:10]}  Qh4 {[%clk 0:01:53]} 23. e4 {[%clk 0:01:08]}  Nxd5 {[%clk 0:01:49]} 24. cxd5 {[%clk 0:01:07]}  Rbc8 {[%clk 0:01:48]} 25. Rc1 {[%clk 0:01:05]}  Qg5 {[%clk 0:01:47]} 26. Rc4 {[%clk 0:00:57]}  a6 {[%clk 0:01:35]} 27. Qe3 {[%clk 0:00:53]}  b5 {[%clk 0:01:17]} 28. Qxg5 {[%clk 0:00:49]}  hxg5 {[%clk 0:01:17]} 29. Rc6 {[%clk 0:00:50]}  Rxc6 {[%clk 0:01:17]} 30. dxc6 {[%clk 0:00:51]}  Rc8 {[%clk 0:01:18]} 31. Rc1 {[%clk 0:00:50]}  Kg8 {[%clk 0:01:11]} 32. c7 {[%clk 0:00:44]}  Kf8 {[%clk 0:01:11]} 33. Rc6 {[%clk 0:00:44]}  Ke7 {[%clk 0:01:11]} 34. Rxa6 {[%clk 0:00:44]}  Rxc7 {[%clk 0:01:12]} 35. Rb6 {[%clk 0:00:41]}  Rc1+ {[%clk 0:01:12]} 36. Kf2 {[%clk 0:00:40]}  Rc2+ {[%clk 0:01:12]} 37. Kf3 {[%clk 0:00:40]}  Rxa2 {[%clk 0:01:12]} 38. Rxb5 {[%clk 0:00:40]}  Rh2 {[%clk 0:01:12]} 39. Kg3 {[%clk 0:00:39]}  Rd2 {[%clk 0:01:11]} 40. Rb7+ {[%clk 0:00:37]}  Ke8 {[%clk 0:01:10]} 41. Rb8+ {[%clk 0:00:34]}  Ke7 {[%clk 0:01:08]} 42. Rb7+ {[%clk 0:00:34]}  Ke8 {[%clk 0:01:04]} 43. Rb8+ {[%clk 0:00:34]}  Ke7 {[%clk 0:01:04]} 44. Rb7+ {[%clk 0:00:35]} 1/2-1/2


[Site "https://www.chess.com"]

[Event "Titled Tuesday Blitz February 14 Early 2023"]
[White "Mohamed Anees M"]
[Black "Postny, Evgeny"]
[WhiteFideId "35065815"]
[BlackFideId "2804344"]
[WhiteElo "2315"]
[BlackElo "2549"]
[Result "0-1"]
[Round "07"]
[TimeControl "180+2"]
[Date "2023.02.15"]
[WhiteClock "0:01:41"]
[BlackClock "0:01:31"]

1. e4 {[%clk 0:03:00]}  c5 {[%clk 0:02:56]} 2. Nf3 {[%clk 0:03:00]}  Nc6 {[%clk 0:02:54]} 3. d4 {[%clk 0:03:00]}  cxd4 {[%clk 0:02:55]} 4. Nxd4 {[%clk 0:03:01]}  e5 {[%clk 0:02:55]} 5. Nb5 {[%clk 0:03:00]}  a6 {[%clk 0:02:55]} 6. Nd6+ {[%clk 0:02:59]}  Bxd6 {[%clk 0:02:56]} 7. Qxd6 {[%clk 0:03:00]}  Qe7 {[%clk 0:02:57]} 8. Qxe7+ {[%clk 0:03:00]}  Kxe7 {[%clk 0:02:57]} 9. Nc3 {[%clk 0:02:55]}  Nf6 {[%clk 0:02:56]} 10. b3 {[%clk 0:02:52]}  d6 {[%clk 0:02:52]} 11. a4 {[%clk 0:02:50]}  Nb4 {[%clk 0:02:41]} 12. Bd3 {[%clk 0:02:43]}  Be6 {[%clk 0:02:37]} 13. Ke2 {[%clk 0:02:38]}  Rac8 {[%clk 0:02:31]} 14. Bb2 {[%clk 0:02:36]}  Nxd3 {[%clk 0:02:18]} 15. Kxd3 {[%clk 0:02:34]}  d5 {[%clk 0:02:17]} 16. exd5 {[%clk 0:02:19]}  Nxd5 {[%clk 0:02:07]} 17. Nxd5+ {[%clk 0:02:15]}  Bxd5 {[%clk 0:02:08]} 18. c4 {[%clk 0:02:12]}  Bxg2 {[%clk 0:02:05]} 19. Rhg1 {[%clk 0:02:12]}  Bh3 {[%clk 0:01:49]} 20. Rxg7 {[%clk 0:02:07]}  Bf5+ {[%clk 0:01:48]} 21. Ke3 {[%clk 0:02:01]}  Bg6 {[%clk 0:01:45]} 22. Bxe5 {[%clk 0:02:01]}  Rhd8 {[%clk 0:01:45]} 23. Ke2 {[%clk 0:01:54]}  Kf8 {[%clk 0:01:36]} 24. h4 {[%clk 0:01:50]}  Re8 {[%clk 0:01:36]} 25. f4 {[%clk 0:01:39]}  Rxe5+ {[%clk 0:01:32]} 26. fxe5 {[%clk 0:01:40]}  Kxg7 {[%clk 0:01:33]} 27. Ke3 {[%clk 0:01:41]}  Rd8 {[%clk 0:01:31]} 0-1


[Site "https://www.chess.com"]

[Event "Titled Tuesday Blitz February 14 Early 2023"]
[White "Pinheiro, Iung Alicio de O."]
[Black "Mahdavi, Reza"]
[WhiteFideId "2104350"]
[BlackFideId "12595926"]
[WhiteElo "2306"]
[BlackElo "2339"]
[Result "1-0"]
[Round "07"]
[TimeControl "180+2"]
[Date "2023.02.15"]
[WhiteClock "0:00:08"]
[BlackClock "0:00:18"]

1. e4 {[%clk 0:03:00]}  c5 {[%clk 0:02:59]} 2. Nf3 {[%clk 0:02:59]}  e6 {[%clk 0:03:00]} 3. d3 {[%clk 0:02:59]}  Nc6 {[%clk 0:02:59]} 4. g3 {[%clk 0:02:58]}  d5 {[%clk 0:02:58]} 5. Qe2 {[%clk 0:02:58]}  Nf6 {[%clk 0:02:59]} 6. Bg2 {[%clk 0:02:58]}  Be7 {[%clk 0:02:59]} 7. O-O {[%clk 0:02:58]}  O-O {[%clk 0:02:59]} 8. e5 {[%clk 0:02:53]}  Nd7 {[%clk 0:02:59]} 9. c4 {[%clk 0:02:54]}  Nb6 {[%clk 0:02:35]} 10. Nc3 {[%clk 0:02:36]}  Re8 {[%clk 0:02:32]} 11. h4 {[%clk 0:02:33]}  a6 {[%clk 0:02:30]} 12. Bf4 {[%clk 0:02:27]}  Bd7 {[%clk 0:02:27]} 13. Rad1 {[%clk 0:02:26]}  Nd4 {[%clk 0:02:22]} 14. Nxd4 {[%clk 0:02:15]}  cxd4 {[%clk 0:02:23]} 15. Nb1 {[%clk 0:02:16]}  Bc6 {[%clk 0:02:23]} 16. c5 {[%clk 0:01:56]}  Bxc5 {[%clk 0:02:21]} 17. Nd2 {[%clk 0:01:57]}  Nd7 {[%clk 0:02:16]} 18. Nf3 {[%clk 0:01:55]}  Qa5 {[%clk 0:02:14]} 19. a3 {[%clk 0:01:49]}  Qa4 {[%clk 0:02:14]} 20. h5 {[%clk 0:01:46]}  Bb5 {[%clk 0:02:11]} 21. h6 {[%clk 0:01:45]}  g6 {[%clk 0:02:11]} 22. Nh2 {[%clk 0:01:42]}  Bf8 {[%clk 0:02:09]} 23. Ng4 {[%clk 0:01:42]}  Rec8 {[%clk 0:02:09]} 24. Rd2 {[%clk 0:01:41]}  Rc6 {[%clk 0:02:06]} 25. Bg5 {[%clk 0:01:25]}  Rac8 {[%clk 0:02:06]} 26. Qf3 {[%clk 0:00:38]}  Rc2 {[%clk 0:02:04]} 27. Rfd1 {[%clk 0:00:38]}  Rxd2 {[%clk 0:02:02]} 28. Rxd2 {[%clk 0:00:39]}  Rc2 {[%clk 0:02:03]} 29. Nf6+ {[%clk 0:00:33]}  Nxf6 {[%clk 0:02:02]} 30. Rxc2 {[%clk 0:00:26]}  Qxc2 {[%clk 0:02:02]} 31. Qxf6 {[%clk 0:00:27]}  Qxb2 {[%clk 0:01:37]} 32. Bxd5 {[%clk 0:00:18]}  Qb1+ {[%clk 0:01:09]} 33. Kh2 {[%clk 0:00:17]}  Be8 {[%clk 0:00:51]} 34. Qd8 {[%clk 0:00:14]}  Qb5 {[%clk 0:00:48]} 35. Bxb7 {[%clk 0:00:11]}  Qxb7 {[%clk 0:00:32]} 36. Qxe8 {[%clk 0:00:11]}  Qc7 {[%clk 0:00:33]} 37. Bf6 {[%clk 0:00:10]}  Qc2 {[%clk 0:00:20]} 38. Kg2 {[%clk 0:00:09]}  Qxd3 {[%clk 0:00:18]} 39. Be7 {[%clk 0:00:09]}  Qe4+ {[%clk 0:00:18]} 40. Kh2 {[%clk 0:00:08]} 1-0


[Site "https://www.chess.com"]

[Event "Titled Tuesday Blitz February 14 Early 2023"]
[White "Costachi, Mihnea"]
[Black "Melian, Juan Sebastian"]
[WhiteFideId "1217518"]
[BlackFideId "3706575"]
[WhiteElo "2476"]
[BlackElo "2293"]
[Result "0-1"]
[Round "07"]
[TimeControl "180+2"]
[Date "2023.02.15"]
[WhiteClock "0:00:15"]
[BlackClock "0:00:10"]

1. Nc3 {[%clk 0:03:00]}  d5 {[%clk 0:02:57]} 2. d4 {[%clk 0:03:00]}  Nf6 {[%clk 0:02:58]} 3. Bf4 {[%clk 0:03:01]}  e6 {[%clk 0:02:57]} 4. e3 {[%clk 0:03:01]}  Bb4 {[%clk 0:02:56]} 5. Bd3 {[%clk 0:02:54]}  c5 {[%clk 0:02:55]} 6. dxc5 {[%clk 0:02:52]}  a6 {[%clk 0:02:56]} 7. Ne2 {[%clk 0:02:51]}  Nbd7 {[%clk 0:02:56]} 8. a3 {[%clk 0:02:51]}  Bxc5 {[%clk 0:02:56]} 9. O-O {[%clk 0:02:50]}  e5 {[%clk 0:02:54]} 10. Bg5 {[%clk 0:02:48]}  e4 {[%clk 0:02:53]} 11. Nxd5 {[%clk 0:02:39]}  exd3 {[%clk 0:02:52]} 12. Qxd3 {[%clk 0:02:38]}  Be7 {[%clk 0:02:51]} 13. Nxe7 {[%clk 0:02:33]}  Qxe7 {[%clk 0:02:52]} 14. Nd4 {[%clk 0:02:29]}  Nc5 {[%clk 0:02:43]} 15. Qc4 {[%clk 0:02:22]}  Nce4 {[%clk 0:02:34]} 16. Bxf6 {[%clk 0:02:19]}  Nxf6 {[%clk 0:02:35]} 17. Rfd1 {[%clk 0:02:14]}  O-O {[%clk 0:02:35]} 18. h3 {[%clk 0:02:15]}  Rd8 {[%clk 0:02:28]} 19. Rd3 {[%clk 0:02:07]}  Bd7 {[%clk 0:02:10]} 20. Rad1 {[%clk 0:02:05]}  Rac8 {[%clk 0:02:10]} 21. Qb3 {[%clk 0:02:04]}  b5 {[%clk 0:01:55]} 22. f3 {[%clk 0:01:59]}  g6 {[%clk 0:01:50]} 23. e4 {[%clk 0:01:58]}  Kg7 {[%clk 0:01:49]} 24. c3 {[%clk 0:01:52]}  Nh5 {[%clk 0:01:42]} 25. Qc2 {[%clk 0:01:40]}  Nf4 {[%clk 0:01:41]} 26. R3d2 {[%clk 0:01:41]}  Be6 {[%clk 0:01:31]} 27. Nxe6+ {[%clk 0:01:36]}  Nxe6 {[%clk 0:01:29]} 28. Qc1 {[%clk 0:01:25]}  Qg5 {[%clk 0:01:20]} 29. Qc2 {[%clk 0:01:19]}  Nf4 {[%clk 0:01:17]} 30. Kh2 {[%clk 0:01:17]}  h5 {[%clk 0:01:17]} 31. g3 {[%clk 0:01:16]}  Ne6 {[%clk 0:01:16]} 32. f4 {[%clk 0:01:15]}  Qf6 {[%clk 0:01:13]} 33. e5 {[%clk 0:01:15]}  Qe7 {[%clk 0:01:13]} 34. Rd6 {[%clk 0:01:16]}  h4 {[%clk 0:01:09]} 35. Qf2 {[%clk 0:01:09]}  Rxd6 {[%clk 0:00:58]} 36. exd6 {[%clk 0:01:05]}  Qf6 {[%clk 0:00:57]} 37. d7 {[%clk 0:00:56]}  Rd8 {[%clk 0:00:57]} 38. Qe3 {[%clk 0:00:55]}  hxg3+ {[%clk 0:00:52]} 39. Kxg3 {[%clk 0:00:56]}  Kh7 {[%clk 0:00:52]} 40. Rd6 {[%clk 0:00:51]}  Qe7 {[%clk 0:00:48]} 41. Qb6 {[%clk 0:00:36]}  Ng7 {[%clk 0:00:43]} 42. Rd3 {[%clk 0:00:30]}  Nf5+ {[%clk 0:00:41]} 43. Kf3 {[%clk 0:00:30]}  Rxd7 {[%clk 0:00:39]} 44. Rxd7 {[%clk 0:00:31]}  Qxd7 {[%clk 0:00:40]} 45. Qxa6 {[%clk 0:00:32]}  Qd3+ {[%clk 0:00:36]} 46. Kf2 {[%clk 0:00:32]}  Qd2+ {[%clk 0:00:33]} 47. Kf3 {[%clk 0:00:32]}  Qe3+ {[%clk 0:00:33]} 48. Kg2 {[%clk 0:00:32]}  Qe2+ {[%clk 0:00:33]} 49. Kg1 {[%clk 0:00:32]}  Ne3 {[%clk 0:00:28]} 50. Qb7 {[%clk 0:00:31]}  Qf1+ {[%clk 0:00:23]} 51. Kh2 {[%clk 0:00:31]}  Qxf4+ {[%clk 0:00:21]} 52. Kg1 {[%clk 0:00:30]}  Qf1+ {[%clk 0:00:19]} 53. Kh2 {[%clk 0:00:30]}  Qf2+ {[%clk 0:00:19]} 54. Kh1 {[%clk 0:00:30]}  Kg7 {[%clk 0:00:10]} 55. Qe4 {[%clk 0:00:29]}  Nf1 {[%clk 0:00:08]} 56. Qg2 {[%clk 0:00:18]}  Ng3+ {[%clk 0:00:06]} 57. Kh2 {[%clk 0:00:18]}  Nf1+ {[%clk 0:00:06]} 58. Kh1 {[%clk 0:00:18]}  Qe1 {[%clk 0:00:05]} 59. Qc6 {[%clk 0:00:11]}  Ng3+ {[%clk 0:00:03]} 60. Kg2 {[%clk 0:00:11]}  Qh1+ {[%clk 0:00:03]} 61. Kxg3 {[%clk 0:00:10]}  Qxc6 {[%clk 0:00:04]} 62. Kf4 {[%clk 0:00:11]}  Qc4+ {[%clk 0:00:04]} 63. Ke3 {[%clk 0:00:12]}  Qb3 {[%clk 0:00:05]} 64. Kd2 {[%clk 0:00:13]}  Qxb2+ {[%clk 0:00:06]} 65. Kd3 {[%clk 0:00:13]}  Qxa3 {[%clk 0:00:07]} 66. Kd4 {[%clk 0:00:13]}  Qb3 {[%clk 0:00:07]} 67. Kc5 {[%clk 0:00:14]}  Qc4+ {[%clk 0:00:08]} 68. Kb6 {[%clk 0:00:15]}  Qxc3 {[%clk 0:00:09]} 69. Kxb5 {[%clk 0:00:15]}  Qxh3 {[%clk 0:00:10]} 0-1


[Site "https://www.chess.com"]

[Event "Titled Tuesday Blitz February 14 Early 2023"]
[White "Donskov, Anatoly"]
[Black "Vaibhav Jayant Raut"]
[WhiteFideId "24143413"]
[BlackFideId "5089034"]
[WhiteElo "2279"]
[BlackElo "2237"]
[Result "1-0"]
[Round "07"]
[TimeControl "180+2"]
[Date "2023.02.15"]
[WhiteClock "0:00:32"]
[BlackClock "0:01:44"]

1. e4 {[%clk 0:03:00]}  c5 {[%clk 0:02:56]} 2. Nf3 {[%clk 0:03:00]}  Nc6 {[%clk 0:02:57]} 3. Bb5 {[%clk 0:02:58]}  g6 {[%clk 0:02:57]} 4. Bxc6 {[%clk 0:02:57]}  dxc6 {[%clk 0:02:57]} 5. d3 {[%clk 0:02:58]}  Bg7 {[%clk 0:02:58]} 6. O-O {[%clk 0:02:57]}  Bg4 {[%clk 0:02:55]} 7. h3 {[%clk 0:02:56]}  Bxf3 {[%clk 0:02:55]} 8. Qxf3 {[%clk 0:02:57]}  Nf6 {[%clk 0:02:55]} 9. Re1 {[%clk 0:02:34]}  O-O {[%clk 0:02:55]} 10. e5 {[%clk 0:02:27]}  Nd5 {[%clk 0:02:51]} 11. Nc3 {[%clk 0:02:07]}  Nxc3 {[%clk 0:02:47]} 12. bxc3 {[%clk 0:02:08]}  Qc7 {[%clk 0:02:44]} 13. Bf4 {[%clk 0:02:06]}  e6 {[%clk 0:02:43]} 14. Rab1 {[%clk 0:02:01]}  Rad8 {[%clk 0:02:43]} 15. c4 {[%clk 0:01:58]}  Rd4 {[%clk 0:02:42]} 16. Be3 {[%clk 0:01:57]}  Bxe5 {[%clk 0:02:35]} 17. Bxd4 {[%clk 0:01:57]}  Bxd4 {[%clk 0:02:36]} 18. Rb3 {[%clk 0:01:52]}  Qa5 {[%clk 0:02:32]} 19. Re2 {[%clk 0:01:45]}  Rb8 {[%clk 0:02:19]} 20. a3 {[%clk 0:01:39]}  Kg7 {[%clk 0:02:19]} 21. Qg3 {[%clk 0:01:34]}  Qd8 {[%clk 0:02:17]} 22. c3 {[%clk 0:01:07]}  Bf6 {[%clk 0:02:16]} 23. Rd2 {[%clk 0:01:07]}  h5 {[%clk 0:02:16]} 24. d4 {[%clk 0:01:07]}  h4 {[%clk 0:02:16]} 25. Qd3 {[%clk 0:01:00]}  cxd4 {[%clk 0:02:14]} 26. cxd4 {[%clk 0:01:01]}  Qa5 {[%clk 0:02:15]} 27. Rd1 {[%clk 0:00:58]}  b6 {[%clk 0:01:59]} 28. Qd2 {[%clk 0:00:56]}  Qa4 {[%clk 0:01:56]} 29. Rc3 {[%clk 0:00:43]}  Rd8 {[%clk 0:01:55]} 30. Qc2 {[%clk 0:00:37]}  Qa5 {[%clk 0:01:49]} 31. Rcd3 {[%clk 0:00:35]}  Qf5 {[%clk 0:01:49]} 32. Qe2 {[%clk 0:00:33]}  Qf4 {[%clk 0:01:48]} 33. Qe3 {[%clk 0:00:32]}  Qc7 {[%clk 0:01:47]} 34. Qf3 {[%clk 0:00:33]}  Qc8 {[%clk 0:01:45]} 35. Qf4 {[%clk 0:00:32]}  Qa6 {[%clk 0:01:44]} 36. Rf3 {[%clk 0:00:32]} 1-0


[Site "https://www.chess.com"]

[Event "Titled Tuesday Blitz February 14 Early 2023"]
[White "Hansen, Sune Berg"]
[Black "Heinemann, Josefine"]
[WhiteFideId "1400266"]
[BlackFideId "12900460"]
[WhiteElo "2517"]
[BlackElo "2289"]
[Result "1-0"]
[Round "07"]
[TimeControl "180+2"]
[Date "2023.02.15"]
[WhiteClock "0:00:34"]
[BlackClock "0:00:22"]

1. e4 {[%clk 0:03:00]}  e5 {[%clk 0:02:55]} 2. Nf3 {[%clk 0:03:00]}  Nc6 {[%clk 0:02:55]} 3. Bb5 {[%clk 0:03:00]}  a6 {[%clk 0:02:53]} 4. Ba4 {[%clk 0:03:00]}  Nf6 {[%clk 0:02:52]} 5. d3 {[%clk 0:02:59]}  b5 {[%clk 0:02:50]} 6. Bb3 {[%clk 0:02:59]}  Bc5 {[%clk 0:02:51]} 7. c3 {[%clk 0:02:56]}  d6 {[%clk 0:02:50]} 8. O-O {[%clk 0:02:54]}  O-O {[%clk 0:02:45]} 9. Bg5 {[%clk 0:02:52]}  Be6 {[%clk 0:02:28]} 10. Bc2 {[%clk 0:02:22]}  h6 {[%clk 0:02:17]} 11. Bh4 {[%clk 0:02:21]}  g5 {[%clk 0:02:10]} 12. Bg3 {[%clk 0:02:20]}  Ne7 {[%clk 0:02:03]} 13. d4 {[%clk 0:02:18]}  exd4 {[%clk 0:02:03]} 14. cxd4 {[%clk 0:02:17]}  Bb6 {[%clk 0:02:04]} 15. Nc3 {[%clk 0:02:10]}  Ng6 {[%clk 0:02:02]} 16. Re1 {[%clk 0:01:58]}  Nh5 {[%clk 0:01:48]} 17. a3 {[%clk 0:01:30]}  Nhf4 {[%clk 0:01:44]} 18. h3 {[%clk 0:01:21]}  g4 {[%clk 0:01:40]} 19. hxg4 {[%clk 0:01:18]}  Bxg4 {[%clk 0:01:41]} 20. Re3 {[%clk 0:01:14]}  Qf6 {[%clk 0:01:25]} 21. Qd2 {[%clk 0:01:11]}  h5 {[%clk 0:01:06]} 22. e5 {[%clk 0:01:06]}  Qg7 {[%clk 0:01:02]} 23. Bxg6 {[%clk 0:00:44]}  Nxg6 {[%clk 0:01:01]} 24. Nd5 {[%clk 0:00:43]}  Bxf3 {[%clk 0:00:54]} 25. Rxf3 {[%clk 0:00:42]}  dxe5 {[%clk 0:00:54]} 26. Nf6+ {[%clk 0:00:41]}  Kh8 {[%clk 0:00:53]} 27. Nxh5 {[%clk 0:00:35]}  Qh7 {[%clk 0:00:43]} 28. Nf6 {[%clk 0:00:35]}  Qg7 {[%clk 0:00:23]} 29. Bxe5 {[%clk 0:00:34]}  Nxe5 {[%clk 0:00:22]} 30. Rh3+ {[%clk 0:00:34]} 1-0


[Site "https://www.chess.com"]

[Event "Titled Tuesday Blitz February 14 Early 2023"]
[White "Ordekalog"]
[Black "Maksimovic, Bojan"]
[BlackFideId "14408120"]
[WhiteElo "2544"]
[BlackElo "2486"]
[Result "0-1"]
[Round "07"]
[TimeControl "180+2"]
[Date "2023.02.15"]
[WhiteClock "0:00:49"]
[BlackClock "0:01:53"]

1. d4 {[%clk 0:02:53]}  g6 {[%clk 0:03:00]} 2. e3 {[%clk 0:02:50]}  Bg7 {[%clk 0:03:00]} 3. Nf3 {[%clk 0:02:49]}  d6 {[%clk 0:03:01]} 4. Be2 {[%clk 0:02:48]}  Nf6 {[%clk 0:03:01]} 5. O-O {[%clk 0:02:48]}  O-O {[%clk 0:03:02]} 6. c4 {[%clk 0:02:46]}  Nbd7 {[%clk 0:03:03]} 7. Nc3 {[%clk 0:02:45]}  e5 {[%clk 0:03:03]} 8. Qc2 {[%clk 0:02:44]}  Re8 {[%clk 0:03:04]} 9. b4 {[%clk 0:02:43]}  e4 {[%clk 0:03:03]} 10. Nd2 {[%clk 0:02:42]}  Qe7 {[%clk 0:03:04]} 11. a4 {[%clk 0:02:41]}  Nf8 {[%clk 0:03:04]} 12. b5 {[%clk 0:02:40]}  h5 {[%clk 0:03:04]} 13. a5 {[%clk 0:02:40]}  Bf5 {[%clk 0:03:01]} 14. a6 {[%clk 0:02:39]}  b6 {[%clk 0:03:00]} 15. Qb3 {[%clk 0:02:35]}  h4 {[%clk 0:03:00]} 16. Ba3 {[%clk 0:02:30]}  h3 {[%clk 0:02:59]} 17. g3 {[%clk 0:02:29]}  N8h7 {[%clk 0:02:58]} 18. c5 {[%clk 0:02:28]}  Ng5 {[%clk 0:02:41]} 19. cxd6 {[%clk 0:02:24]}  cxd6 {[%clk 0:02:42]} 20. Nc4 {[%clk 0:02:24]}  Rad8 {[%clk 0:02:37]} 21. Qb4 {[%clk 0:02:23]}  Bf8 {[%clk 0:02:36]} 22. d5 {[%clk 0:02:16]}  Bg4 {[%clk 0:02:31]} 23. Rfe1 {[%clk 0:02:05]}  Bxe2 {[%clk 0:02:30]} 24. Rxe2 {[%clk 0:02:05]}  Nf3+ {[%clk 0:02:25]} 25. Kh1 {[%clk 0:02:06]}  Ng4 {[%clk 0:02:23]} 26. Nd2 {[%clk 0:01:55]}  Nxd2 {[%clk 0:02:21]} 27. Rxd2 {[%clk 0:01:55]}  Qf6 {[%clk 0:02:18]} 28. f4 {[%clk 0:01:55]}  exf3 {[%clk 0:02:09]} 29. Qxg4 {[%clk 0:01:55]}  Qxc3 {[%clk 0:02:07]} 30. Rda2 {[%clk 0:01:07]}  Rxe3 {[%clk 0:02:02]} 31. Rf1 {[%clk 0:01:02]}  Qb3 {[%clk 0:01:57]} 32. Qg5 {[%clk 0:00:49]}  Qxa2 {[%clk 0:01:53]} 0-1


[Site "https://www.chess.com"]